{"text_format":"1","workbook":"xlsx","n_sheets":13,"sheets":["説明","プロセスの概要","1. 大規模集会の概要","1a.Describe Your Mass Gathering","2. リスクプロセスの評価","2A. ハザードの特定","2B. 可能性の評価","2C. リスクスコア","2D. 影響の判断","3. 予防措置","4. リスクコミュニケーション","レビュアーの確認ページ","Back end 2"],"not_rendered":{"charts":0,"images":2,"macros":1,"external_links":0,"defined_names":11,"comments":1,"pivot_tables":0},"unopened":[],"bounds":{"document_bytes":16777216,"sheet_cells":100000,"rows_first":2000,"rows_last":500,"rows_between":2000,"halvings":0,"cell_chars":16384,"cell_head_chars":4096},"cells_cut":0,"cells_raw":0,"read":"whole","date_system":"1900"}

{"sheet":"説明","index":0,"n_rows":20,"n_cols":2,"rows_kept":20,"cut":false,"hidden":false,"merged":[]}
[]
[null,"Description: "]
[null,"大規模集会イベントのための包括的オールハザードリスク評価および計画ツール（以下、オールハザードMG RAツール）は、加盟国および大規模集会イベント主催者が、その集会に影響を与えうる潜在的なすべての危険事象を特定および軽減し、大規模集会計画の基盤を携えられるようにすることを目的としています。"]
[null,"このツールは、世界保健機関の「リスク評価のための戦略的ツールキット（STAR）」の原則と、「COVID-19 集団集会用リスク評価ツール」で特定された知見経験に基づき作成されたものです。オールハザードMG RAツールの目的は、イベントに関連する危険要因を特定し、全体的なリスクレベルを評価・定量化し、リスクを低減しイベントをより安全にする予防策を特定し、考慮することです。"]
[null,"このツールは、優先順位の高いリスクを特定し分類するための体系的エビデンスに基づくアプローチ、特定のハザードを軽減するための国の準備と対応力のレベルの説明、大規模集会に先立つ準備と対応計画を知らせるための包括的かつ戦略的リスク評価の実施に関する指針、および健康への潜在的悪影響を特定し対応するホスト国の能力の推定評価、などを提供するものです。"]
[]
[null,"説明："]
[null,"このツールには、以下のタブがあります。1. プロセスの概要、2. 一般情報（なし）、3. 大規模集会の概要（シート1）、4. リスクプロセスの評価（シート2）、5. ハザードの特定（シート2A）、6. 可能性の評価（シート2B）、7. リスクスコア（シート2C）、8. 影響の判断（シート2D）、9. 予防措置（シート3）、10. リスクコミュニケーション（シート4）、11. レビュアーの確認ページ"]
[null,"公衆衛生当局とイベント主催者が、イベントの詳細を入力し、緩和策に回答すれば、注意すべき優先的なハザード領域のリスト、総合リスクスコア、イベントの準備計画に組み込むべき緩和策の提案などが提示されます。GOARN計数能力、または関連するIHR締約国自己評価年次報告（SPAR）指標スコアの詳細を入力することにより、イベント主催者は、オールハザードイベントに対応する国の保健システム能力についての認識も得ることができます。 "]
[null,"「プロセスの概要」タブでは、ツールの目的、原則、手順、および方法論について簡単に説明します。イベントの主催者は、「一般情報」タブでツールとの対話を開始します。このタブの主な目的は、WHOがどのイベントがこのツールを利用したかの記録を保持することです。セクションには、大規模集会名、開催国、地域、リスクアセスメントの実施日、およびアセスメントチームが含まれます。"]
[null,"「大規模集会の概要」タブでは、イベントの主催者は、計画中の大規模集会の主な特徴に関する質問に回答するよう求められます。これらの質問は、主にイベントの基本的な事実と、参加者や観客の構成が中心となっています。このタブと先にある「ハザードの特定」タブの質問に対する回答は、加重スコアを持ち、スコアが高いほど、そのイベントは危険であることを意味します。さらに、このタブの質問は、イベント主催者がツール全体を通して回答しなければならない質問の数を減らすために、将来のタブの質問を絞り込む設計となっています。     "]
[null,"「リスクプロセスの評価」タブでは、イベント主催者に本ツールのカリキュラムプロセスの概要を提供します。イベント主催者は、リスクスコアを下げるための緩和策を実施する際に、このツールを複数回利用することが期待されます。    "]
[null,"イベントの主催者は、次に「ハザードの特定」ツールに移り、そこで、対応を必要とする可能性が最も高いハザードや、大規模な集会で健康への悪影響をもたらす可能性が最も高いハザードに関する質問に答えます。考慮すべき点は、ハザードの種類、健康への影響、規模、暴露量などです。この一連の質問の最後に、潜在的なハザードの優先リストが提示されるようになっています。カテゴリーには、疫学的懸念（人から人への感染拡大による感染症発生、性感染症（STI）は含まない）、疫学的懸念（STI）、疫学的懸念（媒介感染症）、非感染症健康脅威（非感染症、物質の過剰使用、人の殺到、将棋倒しによる圧死）、環境的懸念（凍傷、過熱、換気不良）、CBRN脅威、食品安全および／または水に関する懸念が含まれます。"]
[null,"「可能性の評価」タブでは、イベント主催者は、緩和策の記述に「はい」と答えた場合、前のタブからリスクを「引き下げる（buy down）」ことができます。緩和策は、以下のカテゴリーに分類されます：一般的要因、会場要因、行動要因、疫学的要因、CBRNとその他のセキュリティ・ハザード、環境要因。"]
[null,"前のタブへの入力に基づき、リスク表にプロットされたリスクスコアが提示されます - 2軸は影響と可能性。リスクスコアは、「非常に低い」から「非常に高い」まで存在します。イベント主催者は「影響の判断」 タブのリスクスコアに加え、脅威が発生した場合、または SPAR スコアが 2 年以上前の場合、ホスト国の医療システムの能力を評価するために、SPAR スコアも提供され、追加質問に答えて能力の推定値を得られます。"]
[null,"「予防措置」タブでは、イベント主催者がランク付けされた危険区域に基づいて自動的に入力されたWHOの予防措置が表示されます。続いて「リスクコミュニケーション」タブでは、イベント主催者が、大規模集会の前または最中に様々な政策決定や変更をメッセージする際の考慮事項を含む包括的な大規模集会コミュニケーションプランの構築を支援します。最後に、「レビュアー確認ページ」タブでは、1つの場所にすべての情報が表示され、イベント主催者が印刷し、イベント組織チームの他のメンバーと共有することができます。 "]
[null,"大規模集会のオールハザード・リスクアセスメント演習は、すべてのリスク情報を一箇所にまとめて最終的に完了できます。これは必要に応じて更新することができ、印刷し、リスクアセスメントチームの他のメンバーと共有できます。"]
[]
[null,"WHO/2023-Generic/Mass_gatherings_All_Hazards_RAtool/2023.1"]
[null,"© WHO 2023. Some rights reserved. This work is available under the CC BY-NC-SA 3.0 IGO licence."]

{"sheet":"プロセスの概要","index":1,"n_rows":11,"n_cols":3,"rows_kept":11,"cut":false,"hidden":false,"merged":[]}
[]
[]
[null,null,"大規模集会イベントのための包括的オールハザード・リスク評価ツール（MG RAツール）に明示されているリスクベースのアプローチは、世界保健機関のリスク評価のための戦略的ツールキット（STAR）の原則およびCOVID-19集団集会リスク評価ツールで特定された方法に基づいています。"]
[]
[null,null,"目的：\n大規模集会の開催に関連する優先的な危険要因を特定し、地域社会／国にとっての大規模集会のリスクレベルを評価すること。リスクを低減するための緩和策を特定・実施し、大規模集会のための準備計画を策定すること。\n"]
[]
[null,null,"ツールの原則：\n本ツールの開発は、以下の原則に基づいて編集されています。\nオールハザード・アプローチ：健康危機管理政策、戦略、関連プログラムは、共通の能力で共通の問題に取り組み、リスク特有の能力で補完するように設計されるべきである。\t\n社会全体アプローチ：社会のあらゆるレベルにおいて、保健医療およびその他の分野の関連する利害関係者の参加と調整を認識し、促進する。これらの主要なステークホルダーは情報が豊富であり、効果的なリスク評価に貢献する。\n保健システムアプローチ：ある国の保健システムのすべてのレベル（一次、二次、三次レベル）で、あらゆるハザードからのリスクを把握するとともに、地域社会、自治体、都市、その他のサブナショナル、ナショナルレベルでのリスクも考慮する。\nリスク情報に基づくエビデンスの収集：研究、評価、サーベイランス、過去の緊急事態の評価、国際保健規則（IHR2005）のモニタリング（IHR締約国自己評価年次報告ツール（SPAR）を含む）、気象プロファイル記述、その他の関連データから得られるその国で入手可能な一次または二次データを使用すること。\n透明性：政府当局やパートナーを含むすべての利害関係者の合意を得て、信頼を築き、調査結果の受容性を高め、リスクアセスメントの行動と勧告の実施へのコミットメントを促し、勧告を大規模集会参加者と一般市民に適時に伝達すること。"]
[]
[null,null,"これらの原則に基づき、「MG RAツール」は、対応するモジュールで構成された多段階のリスク評価プロセスを通じて、大規模集会の計画者や関係者を支援します。\nステップ１：大規模集会について説明し、イベントの顕著なハザードとリスク領域を特定する。\nステップ２：大規模集会のリスクを評価する。（2A. ハザードの特定、2B. 可能性の評価、2C. リスクスコアの算出、2D. インパクトの決定)\t\nステップ３：リスクを軽減するために実施すべき予防措置の特定\t\t\t\nステップ４：大規模集会計画の実施と伝達\nステップ５：リスク評価プロセスを定期的に繰り返し、大規模集会の計画をファイナライズする。\t\t\t\nステップ６：イベント終了後の評価と継承活動の実施"]
[]
[null,null,"使用方法：\n各モジュールの中で、ユーザーは自分の知識の及ぶ限り、問題のイベントについての関連する質問に答えるよう求められます。このプロセスは、既存のデータ、専門知識および多部門での協力を利用して、関連するハザードを特定し、その発生の可能性を確認し、問題の大規模集会への潜在的な影響を推定する反復的なものであることを意図しています。大規模集会イベントの計画者は、住民の健康と福祉に対する自然発生的、人為的、偶発的、および／または意図的なハザードに関連するリスクを評価するための全体的かつ包括的アプローチを確保するために、当該イベントの前、間、後に「MG RAツール」を適用することが推奨されます。"]

{"sheet":"1. 大規模集会の概要","index":2,"n_rows":14,"n_cols":3,"rows_kept":14,"cut":false,"hidden":false,"merged":[[1,1,1,3],[2,2,2,3],[3,2,3,3]]}
[]
[null,"Step 1. 大規模集会の概要"]
[null,null,"計画中の大規模集会の特徴はどの様なものだろうか？\n"]
[null,null,"説明：それぞれの質問に対して、簡潔に答えてください。"]
[null,null,"1. 大規模集会の名前"]
[null,null,"2. ホスト国"]
[null,null,"3. WHO の地域"]
[null,null,"4. リスク評価日時"]
[null,null,"6. 大規模集会の概要"]
[null,null,"5. アセスメントチームのメンバー名と役割\n（例：リーダーなど)"]
[]
[]
[null,null,"WHO/2023-Generic/Mass_gatherings_All_Hazards_RAtool/2023.1"]
[null,null,"© WHO 2023. Some rights reserved. This work is available under the CC BY-NC-SA 3.0 IGO licence."]

{"sheet":"1a.Describe Your Mass Gathering","index":3,"n_rows":23,"n_cols":7,"rows_kept":23,"cut":false,"hidden":true,"merged":[[0,1,0,3],[1,1,1,3],[2,1,2,3]]}
[null,"Step 1: Describe your Mass Gathering"]
[null,"What are the main characteristics of your planned mass gathering?\n"]
[null,"Instuctions: For each question, select an answer from the dropdown options provided. All questions must be answer before proceeding to Step 2: Assessing the Risk of Your Mass Gathering"]
[]
[]
[]
[null,"Action ","Question","Answer","Numeric Score","Weight","Weighted Score"]
[null,null,"Please select the option that best describes the event."]
[null,null,"Event "]
[null,"Unweight ","Will the event be held indoors, outdoors, or utilize a hybrid approach that has a virtual component?","Hybrid format ",{"$f":"IF(D10=\"Indoors\",3,IF(D10=\"Outdoors\",1,IF(D10=\"Indoors and outdoors\",2,IF(D10=\"Hybrid format \",2,IF(D10=\"Don't Know\",2)))))","v":2},3,{"$f":"E10*F10","v":6}]
[null,"Unweight ","How long will the gathering last (choose the most accurate answer possible)?","1-7 days",{"$f":"IF(D11=\"<1 hour\",0,IF(D11=\"1-3 hours\",1,IF(D11=\"3-24 hours\",1.5,IF(D11=\"1-7 days\",2,IF(D11=\"7-30 days\",2,IF(D11=\"More than 30 days\",2.5))))))","v":2},1,{"$f":"E11*F11","v":2}]
[null,null,"Approximately how many individuals are expected to attend?","1001-10000",{"$f":"IF(D12=\"<100\",0,IF(D12=\"100-1000\",0.5,IF(D12=\"1001-10000\",1,IF(D12=\"10001-100000\",1.5,IF(D12=\">100000\",2)))))","v":1},2,2]
[null,"Unweight ","Will the mass gathering include spectators?","Info not available",{"$f":"IF(D13=\"Yes\",2,IF(D13=\"No\",0,IF(D13=\"Not Applicable\",1,IF(D13=\"Don't Know\",0,))))","v":0},3,{"$f":"E13*F13","v":0}]
[null,"Unweight ","Are there multiple venues for the mass gathering that the event organizers must incorporate in their plans?","NOT APPLICABLE",{"$f":"IF(D14=\"Yes\",2,IF(D14=\"No\",0,IF(D14=\"Not Applicable\",1,IF(D14=\"Don't Know\",0,))))","v":1},3,{"$f":"E14*F14","v":3}]
[null,null,"Participants "]
[null,"Unweight ","Will the gathering consist primarily of local participants (i.e., residents of the city/town in which the event will be held), national participants (i.e., residents of the country in which the event will be held, but not the city/town), or international participants (i.e., from jurisdictions outside of the host country)?","National attendees",{"$f":"IF(D16=\"local attendees\",0,IF(D16=\"national attendees\",1,IF(D16=\"International attendees\",2,IF(D16=\"All of the above\",2,IF(D16=\"Don't Know\",1)))))","v":1},3,{"$f":"E16*F16","v":3}]
[null,"Unweight ","Will national or international participants require on-site or other local accommodations during the event?","No",{"$f":"IF(D17=\"Yes\",2,IF(D17=\"No\",0,IF(D17=\"Not Applicable\",0,IF(D17=\"Don't Know\",1))))","v":0},1,0]
[null,"Unweight ","Will the mass gathering include vulnerable or at \"high risk\" participants or spectators (including staff and other relevant personnel) with risk factors for severe disease or health complications (e.g. people aged > 60 years and/or with comorbidities, disadvantaged groups)?","Don’t know",{"$f":"IF(D18=\"Yes\",2,IF(D18=\"No\",0,IF(D18=\"Not Applicable\",1,IF(D18=\"Don’t know\",0))))","v":0},3,{"$f":"E18*F18","v":0}]
[null,"Included ","How will participants arrive at the event venue? ","A mixture of the above",{"$f":"IF(D19='Back end 2'!L23,2,IF(D19='Back end 2'!L24,1,IF(D19='Back end 2'!L25,0,IF(D19='Back end 2'!L26,1,IF(D19='Back end 2'!L27,1.5)))))","v":false},2,0]
[null,"Unweight ","Are there conditions for entry into the gathering (e.g., registration, ticketing, invitation)?","Yes",{"$f":"IF(D20=\"Yes\",1,IF(D20=\"No\",0,IF(D20=\"Don't Know\",0)))","v":1},-2,-2]
[null,"Included ","Will participants gather at official event clubs or areas prior to, during, or after the event?","No",{"$f":"IF(D21=\"Yes\",2,IF(D21=\"No\",0,IF(D21=\"Not Applicable\",0,IF(D21=\"Don't Know\",1))))","v":0},3,0]
[null,"Unweight ","Do you anticipate that participants and/or external spectators will congregate informally outside the gathering venue (e.g., at bars, restaurants, religious institutions)?","No",{"$f":"IF(D22=\"Yes\",2,IF(D22=\"No\",0,IF(D22=\"Not Applicable\",0,IF(D22=\"Don't Know\",1))))","v":0},3,0]
[null,null,"Will food be provided during the mass gathering? ","YES",{"$f":"IF(D23=\"Yes\",2,IF(D23=\"No\",0,IF(D23=\"Info unavailable\",0)))","v":2},2,{"$f":"E23*F23","v":4}]

{"sheet":"2. リスクプロセスの評価","index":4,"n_rows":41,"n_cols":2,"rows_kept":41,"cut":false,"hidden":false,"merged":[]}
[]
[]
[]
[]
[]
[]
[]
[]
[]
[]
[]
[]
[]
[]
[]
[]
[]
[]
[]
[]
[]
[]
[]
[]
[]
[]
[]
[]
[]
[]
[]
[]
[]
[]
[]
[]
[]
[]
[]
[null,"WHO/2023-Generic/Mass_gatherings_All_Hazards_RAtool/2023.1"]
[null,"© WHO 2023. Some rights reserved. This work is available under the CC BY-NC-SA 3.0 IGO licence."]

{"sheet":"2A. ハザードの特定","index":5,"n_rows":73,"n_cols":11,"rows_kept":73,"cut":false,"hidden":false,"merged":[[27,1,35,1],[6,1,12,1],[36,1,40,1],[41,1,47,1],[1,1,1,3],[2,1,2,3],[3,1,3,3],[20,1,26,1],[13,1,19,1]]}
[]
[null,"Step 2A: ハザードの特定"]
[null,"大規模な集会において、対応を必要とする可能性が最も高い、あるいは健康への悪影響を及ぼす可能性が最も高いハザードとは何か？\nハザードの種類、健康への影響、規模、曝露量などを考慮します。"]
[null,"説明: 各質問に対して、提供されたドロップダウンメニューから回答を選択します。提供された情報に従って、大規模集会で懸念される優先的な危険のリストがシートの下部に表示され、また2Cへ反映されます。2B. 可能性の評価に進む前に、すべての質問に回答してください。"]
[]
[null,"カテゴリー","質問","回答","Numeric Score","Weight","Weighted Score","Identified Hazards Category:"]
[null,"一般的要因","この集会は、主に地元の参加者（すなわち、イベントが開催される市町村の住民）、国内の参加者（すなわち、イベントが開催される国の住民（市町村を除く））、または海外の参加者（すなわち、開催国以外の管轄区域からの参加者）で構成されますか？","わからない",{"$f":"IF(D7=\"地域の参加者\",0,IF(D7=\"国内参加者\",1,IF(D7=\"海外の参加者\",2,IF(D7=\"国内外全ての参加者\",2,IF(D7=\"わからない\",1)))))","v":1},5,{"$f":"E7*F7","v":5}]
[null,null,"大規模な集会には観客も含まれますか？","Info Unavailable",{"$f":"IF(D8=\"Yes\",2,IF(D8=\"No\",0,IF(D8=\"Not Applicable\",0,IF(D8=\"Info Unavailable\",2,))))","v":2},4,{"$f":"E8*F8","v":8}]
[null,null,"大規模な集会には、海外からの観客も含まれますか？","情報不足",{"$f":"IF(D9=\"はい\",2,IF(D9=\"いいえ\",0,IF(D9=\"非該当\",0,IF(D9=\"情報不足\",2))))","v":2},4,{"$f":"E9*F9","v":8}]
[null,null,"大規模な集会には、重篤な疾患や健康合併症の危険因子（例えば、60歳以上の人々や併存疾患を持つ人々、恵まれないグループ）を持つ脆弱な、あるいは「ハイリスク」な出席者や観客（スタッフやその他の関係者を含む）は含まれますか？","Info Unavailable",{"$f":"IF(D10=\"Yes\",2,IF(D10=\"No\",0,IF(D10=\"Not Applicable\",0,IF(D10=\"Info Unavailable\",2))))","v":2},3,{"$f":"E10*F10","v":6}]
[null,null,"大規模な集会には、脆弱な、あるいは「高リスク」の出席者や観客（スタッフやその他の関係者を含む）が含まれる場合、その割合はどの程度になると予想されますか？(イベントに脆弱な、あるいは「ハイリスク」な参加者や観客が含まれない場合は、非該当。)","情報不足",{"$f":"IF(D11=\"25%以下\",0.5,IF(D11=\"25-50%\",1,IF(D11=\"51-75%\",1.5,IF(D11=\"75%以上\",2,IF(D11=\"情報不足\",2, IF(D11=\"非該当\",0))))))","v":2},3,6]
[null,null,"参加者はイベント中、立ったり、座ったり、移動したりするでしょうか？","Mostly standing",{"$f":"IF(D12=\"MOSTLY STANDING\",1,IF(D12=\"MOSTLY SITTING\",0.5,IF(D12=\"MOBILE ACTIVITY\",2,IF(D12=\"DON'T KNOW\",2))))","v":1},3,3]
[null,null,"大規模な集会はどのくらいの時間続きますか（可能な限り正確な答えを選んでください）？","1-7 days",{"$f":"IF(D13=\"<1 hour\",0,IF(D13=\"1-3 hours\",1,IF(D13=\"3-24 hours\",1.5,IF(D13=\"1-7 days\",2,IF(D13=\"7-30 days\",2,IF(D13=\"More than 30 days\",2.5))))))","v":2},3,6]
[null,"会場要因","参加者はどのようにして会場に到着しますか？","その他",{"$f":"IF(D14='Back end 2'!L23,2,IF(D14='Back end 2'!L24,1,IF(D14='Back end 2'!L25,0,IF(D14='Back end 2'!L26,1,IF(D14='Back end 2'!L27,1.5)))))","v":1},2,2]
[null,null,"イベントは屋内、屋外、またはバーチャルな要素を含むハイブリッドなアプローチで開催されますか？","屋外",{"$f":"IF(D15=\"室内\",2,IF(D15=\"屋外\",1,IF(D15=\"室内と屋外両方\",1.5,IF(D15=\"ハイブリッド (つまり バーチャルと直接の両方)\",2,IF(D15=\"わからない\",2,0)))))","v":1},5,5]
[null,null,"集会に参加するための条件（登録、チケット、招待など）はありますか？","はい",{"$f":"IF(D16=\"はい\",1,IF(D16=\"いいえ\",0,IF(D16=\"わからない\",0)))","v":1},1,1]
[null,null,"国内外からの参加者は、イベント開催中に現地における宿泊、あるいはその地域の宿泊施設の利用を必要としますか？","いいえ",{"$f":"IF(D17=\"はい\",2,IF(D17=\"いいえ\",0,IF(D17=\"非該当\",0,IF(D17=\"情報不足\",1))))","v":0},1,0]
[null,null,"計画中の大規模な集会には、主催者が計画に組み込んでいる、複数の会場がありますか？","いいえ",{"$f":"IF(D18=\"はい\",2,IF(D18=\"いいえ\",0,IF(D18=\"非該当\",0,IF(D18=\"情報不足\",1))))","v":0},3,0]
[null,null,"参加者は会場間をどのように移動しますか？","非該当",{"$f":"IF(D19=\"イベント主催者手配による交通\",1, IF(D19=\"交通は手配されていない\",2, IF(D19=\"非該当\",0, IF(D19=\"情報不足\",2))))","v":0},2,0]
[null,null,"会場の収容人数はどの程度になりますか？(会場の収容人数に対する割合で表示）？  ","25%以下",{"$f":"IF(D20=\"25％以下\",0.5, IF(D20=\"25% - 50%の間\",1, IF(D20=\"51% - 75%の間\",1, IF(D20=\"75%以上\",2, IF(D20=\"割合の情報なし\",2, IF(D20=\"非該当\",0))))))","v":false},4,0]
[null,"行動要因","イベント参加者及び／又は外部の観客が、集会場の外（バー、レストラン、宗教施設など）に非公式に集まることを想定していますか？","はい",{"$f":"IF(D21=\"はい\",2,IF(D21=\"いいえ\",0,IF(D21=\"非該当\",0,IF(D21=\"情報不足\",2))))","v":2},5,{"$f":"E21*F21","v":10}]
[null,null,"参加者は、イベントの前、中、後に、イベントの公式クラブやエリアに集まりますか？","非該当",{"$f":"IF(D22=\"はい\",2,IF(D22=\"いいえ\",0,IF(D22=\"非該当\",0,IF(D22=\"情報不足\",2))))","v":0},3,0,null,null,null,"*"]
[null,null,"参加者が娯楽や違法薬物使用（注射薬を含む）、アルコール消費、身体的暴力／自傷行為に及ぶと予想されますか？","いいえ",0,4,0]
[null,null,"出席者が無防備な性交渉に及ぶと予想されますか？","いいえ",0,4,0]
[null,null,"出席者が断食やその他の食事制限を行うことが予想されますか？","いいえ",0,3,0]
[null,null,"参加者が、会場や大集会に関連して、歌ったり、応援したり、唱和したり、その他の形態の集団的な発声を行うことが予想されますか？","情報不足",2,3,6]
[null,null,"開催国は、違法薬物の使用、セックスワーカーの関与、または過度の飲酒が多いことを報告していますか？","非該当",0,3,0]
[null,"疫学的要因","開催国は、計画されている集会の性質上、さらに広がる危険性がある風土病を報告していますか？","いいえ",0,5,0]
[null,null,"過去の大規模集会において、開催国はワクチンで予防できる病気、下痢性疾患、媒介性疾患、性感染症（STI）、呼吸器疾患の高い発生率を報告していますか？","いいえ",0,10,{"$f":"E29*F29","v":0}]
[null,null,"過去1年間に、開催都市でワクチンで予防可能な病気、下痢性疾患、媒介性疾患、性感染症（STI）、呼吸器系疾患の高い発生率が報告されたことがありますか？","非該当",0,10,0]
[null,null,"参加者や観客の母国において、大規模な集会によって国際的に広がるリスクが懸念される感染症はありますか？(国際的な参加が見込まれない場合は、非該当と回答すること）","非該当",0,5,0]
[null,null,"開催国のインフルエンザ流行時期に開催されますか？(温暖な地域では、インフルエンザは主に冬に流行しますが、熱帯地方では一年中流行することがあります。）","情報不足",{"$f":"IF(D32=\"はい\",2,IF(D32=\"いいえ\",0,IF(D32=\"情報不足\",2)))","v":2},4,8]
[null,null,"開催国は、抗菌薬耐性の発生率の高さを報告していますか？","いいえ",{"$f":"IF(D33=\"はい\",2,IF(D33=\"いいえ\",0,IF(D33=\"情報不足\",2)))","v":0},3,0]
[null,null,"開催国は過去1年間にウイルス性出血熱（例：エボラ出血熱、マールブルグ病、クリミア・コンゴ病）の症例を報告していますか？","情報不足",2,2,4]
[null,null,"開催国は慢性疾患（例：がん、心血管疾患、糖尿病、慢性腎臓病、慢性呼吸器疾患、肥満、栄養失調）の割合が高いと報告していますか？","情報不足",2,3,6]
[null,null,"開催国は交通事故による傷害の発生率が高いですか？","いいえ",0,2,0]
[null,"CBRNと他の保安要因","開催国は、過去1年間に原因不明のアウトブレイクや意図的な感染症のアウトブレイクを経験していますか？","非該当",{"$f":"IF(D37=\"はい\",2,IF(D37=\"いいえ\",0,IF(D37=\"非該当\",0,IF(D37=\"情報不足\",2))))","v":0},3,{"$f":"E37*F37","v":0}]
[null,null,"その大規模集会は、意図的なCBRNイベントの脅威が懸念される知名度の高い／目立つイベントと考えられますか？","いいえ",{"$f":"IF(D38=\"はい\",2,IF(D38=\"いいえ\",0,IF(D38=\"非該当\",0,IF(D38=\"情報不足\",2))))","v":0},5,{"$f":"E38*F38","v":0}]
[null,null,"大規模集会で意図的なCBRNイベントが発生する中程度の、高い、または重大なリスクが報告されていますか？","非該当",0,5,{"$f":"E39*F39","v":0}]
[null,null,"政治、宗教、性別、LGBTQ+、スポーツの対立、その他の緊張が参加者のグループ間で予想されますか？","非該当",0,3,{"$f":"E40*F40","v":0}]
[null,null,"開催国は現在、国家が支援する武力紛争（戦争、ジェノサイドなど）、非国家主体に関連する暴力的紛争（テロ行為、暴動など）、ストライキ、抗議行動などを経験していますか？","はい",{"$f":"IF(D41=\"はい\",2,IF(D41=\"いいえ\",0,IF(D41=\"情報不足\",2)))","v":2},3,6]
[null,"環境要因","開催国は、屋外の大気汚染のレベルが高いですか？","はい",{"$f":"IF(D42=\"はい\",2,IF(D42=\"いいえ\",0,IF(D42=\"情報不足\",2)))","v":2},2,4]
[null,null,"参加者は、会場内で調理された食品や飲料を消費しますか？","はい",2,3,6]
[null,null,"開催国は、過去1年間に水を媒介とする疾病の発生を報告しましたか？","はい",2,5,10]
[null,null,"参加者は、集会中に猛暑、寒冷、雨、雪、嵐などの厳しい気象条件にさらされることになりますか？","いいえ",0,5,0]
[null,null,"参加者は、会場で生きた動物や植物、その他の外来種や侵入種と接触することがありますか？","はい",2,2,4]
[null,null,"会場において、参加者が花火、爆発物、その他の火災の危険にさらされる可能性はありますか？","情報不足",2,1,2]
[null,null,"会場では、参加者は銃器や弾薬（またはその他の戦闘用武器）を扱ったり、近づいたりしますか？","はい",2,1,2]
[]
[null,null,"Translated with DeepL",null,null,null,{"$f":"SUM(G7:G48)","v":118}]
[]
[null,null,"考慮すべきリスクが高いハザードのカテゴリー（自動で表示されます）："]
[null,null,{"$f":"IF(D15=\"室内\",C63,IF(D15='Back end 2'!I45,C63,IF(D15='Back end 2'!I47,C63,IF(D15='Back end 2'!I46,C63,IF(D20='Back end 2'!D49,C63,IF(D20='Back end 2'!D50,C63,IF(D20='Back end 2'!D51,C63,IF(D21=\"情報不足\",C63,IF(D21=\"はい\",C63,IF(D22=\"わからない\",C63,IF(D22=\"はい\",C63,IF(D26=\"情報不足\",C63,IF(D26=\"はい\",C63,IF(D28=\"はい\",C63,IF(D28=\"情報不足\",C63,IF(D29=\"はい\",C63,IF(D29=\"情報不足\",C63,IF(D30=\"はい\",C63,IF(D30=\"情報不足\",C63,IF(D31=\"はい\",C63,IF(D31=\"情報不足\",C63,IF(D32=\"YES\",C63,IF(D32=\"INFO UNAVAILABLE\",C63,IF(D33=\"はい\",C63,IF(D33=\"情報不足\",C63,IF(D34=\"はい\",C63,IF(D34=\"情報不足\",C63,IF(D46=\"はい\",C63,IF(D46=\"情報不足\",C63,\"\")))))))))))))))))))))))))))))","v":"疫学的な懸念（人から人への感染拡大による感染症発生、性感染症は含まず）"}]
[null,null,{"$f":"IF(D21=\"はい\",C64,IF(D21=\"情報不足\",C64,IF(D22=\"はい\",C64,IF(D22=\"わからない\",C64,IF(D24=\"はい\",C64,IF(D24=\"情報不足\",C64,IF(D29=\"はい\",C64,IF(D29=\"情報不足\",C64,IF(D30=\"はい\",C64,IF(D30=\"情報不足\",C64,IF(D31=\"はい\",C64,IF(D31=\"情報不足\",C64,IF(D33=\"はい\",C64,IF(D33=\"情報不足\",C64,\"\"))))))))))))))","v":"疫学的な懸念（性感染症）"}]
[null,null,{"$f":"IF(D15=\"室内\",C65,IF(D15='Back end 2'!I45,C65,IF(D15='Back end 2'!I47,C65,IF(D15='Back end 2'!I46,C65,IF(D29=\"情報不足\",C65,IF(D29=\"はい\",C65,IF(D30=\"情報不足\",C65,IF(D30=\"はい\",C65,IF(D31=\"はい\",C65,IF(D31=\"情報不足\",C65,IF(D33=\"はい\",C65,IF(D33=\"情報不足\",C65,IF(D34=\"はい\",C65,IF(D34=\"情報不足\",C65,IF(D46=\"はい\",C65,IF(D46=\"情報不足\",C65,\"\"))))))))))))))))","v":"疫学的懸念（ベクターが媒介する病気）"}]
[null,null,{"$f":"IF(D20='Back end 2'!D49,C66,IF(D20='Back end 2'!D50,C66,IF(D20='Back end 2'!D51,C66,IF(D21=\"はい\",C66,IF(D21=\"情報不足\",C66,IF(D22=\"はい\",C66,IF(D22=\"わからない\",C66,IF(D23=\"はい\",C66,IF(D23=\"情報不足\",C66,IF(D26=\"はい\",C66,IF(D26=\"情報不足\",C66,IF(D27=\"はい\",C66,IF(D27=\"情報不足\",C66,IF(D35=\"はい\",C66,IF(D35=\"情報不足\",C66,IF(D36=\"はい\",C66,IF(D36=\"情報不足\",C66,IF(D47=\"はい\",C66,IF(D47=\"情報不足\",C66,IF(D48=\"はい\",C66,IF(D48=\"情報不足\",C66,\"\")))))))))))))))))))))","v":"非感染性疾患による健康への脅威（怪我、人の殺到、将棋倒しによる圧死）"}]
[null,null,{"$f":"IF(D15=\"室内\",C67,IF(D15='Back end 2'!I45,C67,IF(D15='Back end 2'!I47,C67,IF(D15='Back end 2'!I46,C67,IF(D42=\"情報不足\",C67,IF(D42=\"はい\",C67,IF(D45=\"情報不足\",C67,IF(D45=\"はい\",C67,\"\"))))))))","v":"極端な気象条件の懸念（凍傷、過熱）"}]
[null,null,{"$f":"IF(D37=\"はい\",C68,IF(D37=\"情報不足\",C68,IF(D38=\"はい\",C68,IF(D38=\"情報不足\",C68,IF(D39=\"はい\",C68,IF(D39=\"情報不足\",C68,IF(D40=\"\",C68,IF(D40=\"情報不足\",C68,IF(D41=\"はい\",C68,IF(D41=\"情報不足\",C68,IF(D47=\"はい\",C68,IF(D47=\"情報不足\",C68,IF(D48=\"はい\",C68,IF(D48=\"情報不足\",C68,\"\"))))))))))))))","v":"CBRNの脅威"}]
[null,null,{"$f":"IF(D43=\"はい\",C69,IF(D43=\"情報不足\",C69,IF(D44=\"はい\",C69,IF(D44=\"情報不足\",C69,IF(D46=\"はい\",C69,IF(D46=\"情報不足\",C69,\"\"))))))","v":"食品安全および・または水に関する懸念"}]
[]
[null,null," WHO/2023-Generic/Mass_gatherings_All_Hazards_RAtool/2023.1"]
[]
[null,null,"疫学的な懸念（人から人への感染拡大による感染症発生、性感染症は含まず）"]
[null,null,"疫学的な懸念（性感染症）"]
[null,null,"疫学的懸念（ベクターが媒介する病気）"]
[null,null,"非感染性疾患による健康への脅威（怪我、人の殺到、将棋倒しによる圧死）"]
[null,null,"極端な気象条件の懸念（凍傷、過熱）"]
[null,null,"CBRNの脅威"]
[null,null,"食品安全および・または水に関する懸念"]
[]
[]
[]
[null,null,"© WHO 2023. Some rights reserved. This work is available under the CC BY-NC-SA 3.0 IGO licence."]

{"sheet":"2B. 可能性の評価","index":6,"n_rows":81,"n_cols":9,"rows_kept":81,"cut":false,"hidden":false,"merged":[[62,1,69,1],[35,1,43,1],[1,1,1,4],[2,1,2,4],[3,1,4,4],[18,1,34,1],[44,1,61,1],[6,1,17,1],[103,2,114,2],[115,2,116,2],[117,2,123,2],[70,1,77,1],[94,2,98,2],[99,2,102,2],[92,1,92,3],[93,1,93,3],[84,1,84,3],[85,1,85,3],[86,1,86,3],[87,1,87,3],[88,1,88,3],[89,1,89,3],[90,1,90,3],[91,1,91,3]]}
[]
[null,"Step 2B: ハザードが発生する可能性の評価"]
[null,"特定されたハザードが大規模集会中に発生し健康への悪影響を起こすことを軽減するために協調的な対応が必要となる可能性はどの程度か？\nハザードの発生頻度、季節性、可能性などを考慮します。"]
[null,"説明：各項目について、選択肢の中から回答を選んでください。記入された情報に従って、あなたの大規模集会で懸念される危険の可能性がシート2Cに反映されます。リスクスコアを算出するために、すべての質問に回答する必要があります。"]
[]
[null,"カテゴリー","Hazard Connection","可能性と予防策","回答","Score","Weight","Weighted Score","Identified Hazards Category:"]
[null,"一般的要因","Epidemiological Concerns (infectious disease outbreaks from person to person spread, not including STIs)\nEpidemiological Concerns (vector borne diseases)\nNon Infectious Disease Health Threats (injuries, stampedes, trampling)\nExtreme Weather Condition Concerns (frostbite, over heating)","イベント主催者及び大規模集会の計画プロセスに関与する他の利害関係者は、イベント中に実施する一般的な大規模集会の準備のベストプラクティス及び推奨事項を認識していますか？","はい",{"$f":"IF(E7=\"はい\",2,IF(E7=\"いいえ\",0,IF(E7=\"非該当\",2,IF(E7=\"情報不足\",1))))","v":2},1,{"$f":"F7*G7","v":2}]
[null,null,"Epidemiological Concerns (infectious disease outbreaks from person to person spread, not including STIs)\nEpidemiological Concerns (STIs)\nEpidemiological Concerns (vector borne diseases)","イベント主催者及び大規模集会の計画プロセスに関与しているその他の関係者は、大規模集会に潜在的な懸念をもたらす可能性のある疾病の発生を認識していますか？（開催都市／国または参加者の都市／国のいずれかにおいて）","いいえ",{"$f":"IF(E8=\"はい\",2,IF(E8=\"いいえ\",0,IF(E8=\"非該当\",2,IF(E8=\"情報不足\",1))))","v":0},2,{"$f":"F8*G8","v":0}]
[null,null,"Epidemiological Concerns (infectious disease outbreaks from person to person spread, not including STIs)\nEpidemiological Concerns (STIs)\nEpidemiological Concerns (vector borne diseases)","関連する大規模集会の主催者および責任者は、地元の公衆衛生当局と連携し、疾病管理および大規模集会の準備に関する利用可能な最新のガイダンスを使用することを約束していますか？","はい",2,1,2]
[null,null,null,"大規模集会の主催者と地元／国の公衆衛生当局との間に、正式な情報共有プロセスが確立されていますか？","いいえ",0,1,0]
[null,null,null,"必要に応じて、大規模集会の主催者とその他の利害関係者（運輸省、外務省、救急隊、法執行機関など）との間で、正式な情報共有プロセスが確立されていますか？","はい",2,1,2]
[null,null,null,"大規模集会の主催者は、イベント中の疾病の蔓延やその他の健康への影響の潜在的なリスクについてよりよく理解し、緩和策を実施するために、イベントの参加者、スタッフ、観客などに関する利用可能なあらゆる情報（出所国、その国の疫学状況、個人の健康・個人情報、行動に関するデータなどを含む）を収集していますか？","いいえ",0,1,0]
[null,null,null,"大規模集会に関連して疾病の発生やその他の健康関連の危険の疑いがある場合に、戦略的健康オペレーションセンター（SHOC）またはその他の関連するイベント組織機構を起動する取り決めがありますか？","はい",2,1,2]
[null,null,null,"大規模集会では、海外からの参加者の（一部または全部の）出席を制限していますか？","いいえ",0,3,0]
[null,null,null,"その大規模集会は、観客の参加を許可しないものですか？","いいえ",0,3,0]
[null,null,null,"その大規模集会は、地元または国内の観衆にのみ参加を許可するものですか？","いいえ",0,2,0]
[null,null,null,"その大規模集会は拘束されるものですか？","いいえ",0,2,0]
[null,null,null,"イベントプランナーはイベント保険に加入していますか？","いいえ",0,1,{"$f":"F18*G18","v":0}]
[null,"会場の要因","Epidemiological Concerns (vector borne disease)\nNon Infectious Disease Health Threats (injuries, stampedes, trampling)\nExtreme Weather Condition Concerns (frostbite, over heating)\nFood Safety and/or Clean Water Concerns","会場は、地域の火災危険ガイドライン、洪水防止ガイドライン、建築基準法を遵守していますか？","いいえ",0,2,0]
[null,null,"Epidemiological Concerns (vector borne disease)\nNon Infectious Disease Health Threats (injuries, stampedes, trampling)\nExtreme Weather Condition Concerns (frostbite, over heating)\nFood Safety and/or Clean Water Concerns","屋内会場には、空気の流れを良くするために開けっ放しにできる窓やドアがありますか？","いいえ",0,2,0]
[null,null,"Epidemiological Concerns (infectious disease outbreaks from person to person spread, not including STIs) Epidemiological Concernts (vecton borne diseases) Non Infectious Disease Health Threats (injuries, stampedes, trampling) Extreme Weather Condition Concerns (frostbite, over heating)","清掃スケジュールが作成され、大規模な集会会場と必要な設備が清潔で、細菌の拡散に関して衛生的であることが確認されていますか？","いいえ",0,1,0]
[null,null,"Epidemiological Concerns (infectious disease outbreaks from person to person spread, not including STIs)\nEpidemiological Concerns (vector borne diseases)\nNon Infectious Disease Health Threats (injuries, stampedes, trampling)\nExtreme Weather Condition Concerns (frostbite, over heating)","会場施設は、いつでも屋内換気量を確保できるよう、稼働ポリシーを定めていますか？","いいえ",0,2,0]
[null,null,"Epidemiological Concerns (infectious disease outbreaks from person to person spread, not including STIs)\nEpidemiological Concerns (vector borne diseases)\nNon Infectious Disease Health Threats (injuries, stampedes, trampling)\nExtreme Weather Condition Concerns (frostbite, over heating)","自然換気の会場では、片側換気ではなく、対面での換気が可能な施設ですか？","非該当",2,2,4]
[null,null,"Epidemiological Concerns (infectious disease outbreaks from person to person spread, not including STIs)\nEpidemiological Concerns (vector borne diseases)\nNon Infectious Disease Health Threats (injuries, stampedes, trampling)\nExtreme Weather Condition Concerns (frostbite, over heating)","参加者や観客が集まる部屋は、すべての屋内環境において空気の再循環を行う空調（AC）システム以外に、新鮮な外気（望ましい）またはろ過された空気を使用するHVACシステムを有しますか。","いいえ",0,1,0]
[null,null,"Epidemiological Concerns (infectious disease outbreaks from person to person spread, not including STIs)\nEpidemiological Concerns (vector borne diseases)\nNon Infectious Disease Health Threats (injuries, stampedes, trampling)\nExtreme Weather Condition Concerns (frostbite, over heating)","空気循環を使用する場合、HVACシステムは、最小効率報告値（MERV）15/ISO ePMI 70-80%またはHEPAフィルターを備え、フィルターは製造元の推奨に従って清掃および維持されていますか？","いいえ",0,1,0]
[null,null,"Epidemiological Concerns (infectious disease outbreaks from person to person spread, not including STIs)\nEpidemiological Concerns (vector borne diseases)\nNon Infectious Disease Health Threats (injuries, stampedes, trampling)\nExtreme Weather Condition Concerns (frostbite, over heating)","空気清浄機を使用する場合、システムは最小効率報告値（MERV）14/ISO ePMI 70-80%またはHEPAフィルターを備え、かつフィルターは製造元の推奨に従って清掃および保守されていますか？","いいえ",0,1,0]
[null,null,"Epidemiological Concerns (infectious disease outbreaks from person to person spread, not including STIs)\nEpidemiological Concerns (vector borne diseases)\nNon Infectious Disease Health Threats (injuries, stampedes, trampling)\nExtreme Weather Condition Concerns (frostbite, over heating)","空気清浄機を使用している場合、装置の清浄空気供給率（CADR）（m³/hr）は、最低要件と測定された換気量との間のギャップをカバーしていますか？","いいえ",0,1,0]
[null,null,"Epidemiological Concerns (infectious disease outbreaks from person to person spread, not including STIs)\nEpidemiological Concerns (vector borne diseases)\nNon Infectious Disease Health Threats (injuries, stampedes, trampling)\nExtreme Weather Condition Concerns (frostbite, over heating)","排気は正しく管理されていて、空気は、通気口（エアダクト）、人、動物から離して、直接外部に排気されていますか？","いいえ",0,2,0]
[null,null,"Epidemiological Concerns (infectious disease outbreaks from person to person spread, not including STIs)\nEpidemiological Concerns (vector borne diseases)\nNon Infectious Disease Health Threats (injuries, stampedes, trampling)\nExtreme Weather Condition Concerns (frostbite, over heating)ther Condition Concerns (frostbite, over heating)\nFood Safety and/or Clean Water Concerns","室内温度はモニタリングされ、大規模集会中は必要に応じて調整されますか？","いいえ",0,3,0]
[null,null,"Epidemiological Concerns (infectious disease outbreaks from person to person spread, not including STIs)\nEpidemiological Concerns (vector borne diseases)\nNon Infectious Disease Health Threats (injuries, stampedes, trampling)\nExtreme Weather Condition Concerns (frostbite, over heating)","会場から安全に避難するための計画が策定され、テストされていますか？","非該当",2,3,6]
[null,null,null,"参加者を会場まで送迎するための指定されたシャトルバス、車、バス、その他の車両がありますか？","いいえ",0,1,0]
[null,null,null,"異なるグループの混在を制限するための物理的な障壁が会場にありますか？（セクション間、着席している観客と出席者/選手/発表者などの間など）","いいえ",0,2,0]
[null,null,null,"人の混在を制限し、方向性・一方通行の通路を奨励するためのステッカーや看板が設置されていますか？","いいえ",0,1,0]
[null,null,"Food Safety and/or Clean Water Concerns","会場内の飲食店・屋台について、水道、電気、適切な温度での保管など、適切な措置がとられていますか？","非該当",2,3,6]
[null,null,"Epidemiological Concerns (vector borne disease)\nNon Infectious Disease Health Threats (injuries, stampedes, trampling)\nExtreme Weather Condition Concerns (frostbite, over heating)\nFood Safety and/or Clean Water Concerns","観客のための指定席がありますか？","非該当",2,2,4]
[null,"行動要因","Epidemiological Concerns (STIs)","安全な性行為を促進するためのパンフレットやその他の教育資料が、大勢が集まる前に参加者全員に配布されていますか？","いいえ",0,1,0]
[null,null,"Epidemiological Concerns (STIs)","イベントの主催者は、コンドームを出席者や参加者が容易に入手できるようにしていますか？","いいえ",0,2,0]
[null,null,"Non Infectious Disease Health Threats (injuries, stampedes, trampling)","イベント会場での過度のアルコールおよび/または薬物の消費を制限するための措置が取られていますか？","いいえ",0,3,0]
[null,null,null,"会場周辺での過度の飲酒や薬物摂取を制限する措置がとられていますか？","情報不足",1,3,3]
[null,null,null,"禁煙のための対策がありますか？","非該当",2,3,6]
[null,null,null,"喫煙を風通しの良い特定の場所に限定する措置が取られていますか？","非該当",2,2,4]
[null,null,null,"安全でない行動の事例を報告するためのホットラインや、その他のコミュニケーション手段が設けられていますか？","非該当",2,1,2]
[null,null,null,"安全でない行動を監視するために、監視を強化していますか？（警備員の増員、監視カメラ）","非該当",2,2,4]
[null,null,"Non Infectious Disease Health Threats (injuries, stampedes, trampling)","イベント会場での熱狂的行動やその他の物理的暴力（喧嘩、暴動など）に対処するための計画がありますか？","情報不足",1,3,3]
[null,"疫学的要因","Epidemiological Concerns (infectious disease outbreaks from person to person spread, not including STIs)\nEpidemiological Concerns vector borne disease)\nNon Infectious Disease Health Threats","大規模な集会への入場には、毎日の健康診断が実施されますか？","非該当",2,1,2]
[null,null,"Epidemiological Concerns (infectious disease outbreaks from person to person spread, not including STIs)\nEpidemiological Concerns vector borne disease)\nNon Infectious Disease Health Threats","物理的な距離を置くことを促進するための措置を講じていますか？","いいえ",0,3,0]
[null,null,"Epidemiological Concerns (infectious disease outbreaks from person to person spread, not including STIs)\nEpidemiological Concerns vector borne disease)\nFood Safety and/or Clean Water Concerns","マスクの使用を強く推奨していますか？","いいえ",0,2,0]
[null,null,"Epidemiological Concerns (infectious disease outbreaks from person to person spread, not including STIs)","マスクの着用は必須ですか？","非該当",2,3,6]
[null,null,"Epidemiological Concerns (infectious disease outbreaks from person to person spread, not including STIs)\nEpidemiological Concerns vector borne disease)\nFood Safety and/or Clean Water Concerns","感染症が発生した場合は、ワクチン接種を強く推奨していますか？","非該当",2,2,4]
[null,null,"Epidemiological Concerns (infectious disease outbreaks from person to person spread, not including STIs)\nEpidemiological Concerns vector borne disease)","もし流行があれば、その病気に対するワクチン接種が参加に必要となっていますか？","いいえ",0,3,0]
[null,null,null,"性感染症の検査プログラムが用意されていますか？","非該当",2,2,4]
[null,null,null,"懸念される特定疾病の検査プログラムが用意されていますか？","いいえ",0,2,0]
[null,null,null,"特定疾病が発生した場合、陰性であることを証明することが強く推奨されますか？","非該当",2,2,4]
[null,null,null,"特定疾病が発生した場合、陰性であることを証明することが要求されますか？","いいえ",0,3,0]
[null,null,null,"渋滞を避けるための対策（入場時間をずらすなど）が講じられていますか？","非該当",2,3,6]
[null,null,null,"他国からの参加者・観客のために、公式な入国地点や国境検問所で健康診断を実施する計画がありますか？","はい",2,2,{"$f":"F56*G56","v":4}]
[null,null,null,"会場には、身体的・精神的な応急処置ができる十分な医療スタッフが配置されていますか？","いいえ",0,2,0]
[null,null,null,"病気や怪我をした参加者を会場の外の医療施設に搬送する手順計画がありますか？","非該当",2,1,2]
[null,null,null,"イベント期間中に増加する実験室での検査に対応できる十分なキャパシティがありますか？","いいえ",0,1,0]
[null,null,null,"大規模な医療・非医療対策（医薬品、ワクチン、診断検査、個人用保護具、予防薬など）を迅速に入手・配布するための計画やプロトコルが用意されていますか？","いいえ",0,2,0]
[null,null,null,"検疫、隔離、除染のプロトコルを実施するための十分なスペース、人員、設備がありますか？","いいえ",0,2,0]
[null,null,null,"関連する対応計画およびプロトコルは、事象の前に定期的にテストおよび/または演習が行われていますか？","はい",2,3,6]
[null,"CBRNとその他保安要因","CBRN threats","CBRN関連の脅威について、メディアやコミュニケーション・チャネルの監視が行われていますか？","はい",2,2,4]
[null,null,null,"イベント中に発生した攻撃に対応するため、参加者のための詳細な避難計画や医療計画を含む、専用の安全プロトコルがありますか？","はい",2,3,6]
[null,null,null,"潜在的なリスクを特定し、それを軽減するために、イベントの脅威分析が実施されていますか？","いいえ",0,3,0]
[null,null,null,"会場内に武器が持ち込まれるリスクを軽減するためのセキュリティ対策が講じられていますか？（バッグチェックや入場地点での金属探知機など）","いいえ",0,3]
[null,null,"CBRN threats","大規模集会イベントの主催者は、CBRNの脅威について、関連するセキュリティ、情報、法執行機関と連携していますか？","いいえ",0,2,0]
[null,null,null,"地元の法執行機関、緊急事態管理、公衆衛生、その他の公安当局は、イベントの開催を通知されていますか？","いいえ",0,1,{"$f":"F68*G68","v":0}]
[null,null,null,"大規模な避難、緩和、除染を必要とする大規模な緊急事態（火災、CBRN事象、大混乱など）において、地元の法執行機関、緊急事態管理、公衆衛生、および他の公共安全当局と対応努力を調整するための手順が整備されていますか？","いいえ",0,2,{"$f":"F69*G69","v":0}]
[null,null,null,"会場での意図的な出来事（放火、銃撃、CBRNイベントなど）を調査するために、法執行機関や情報機関などと連携するためのプロトコルが用意されていますか？","いいえ",0,2,{"$f":"F70*G70","v":0}]
[null,"環境要因","Epidemiological Concerns (vector borne disease)","十分な害虫・害獣駆除能力がありますか？（例：虫除けスプレーの提供、立水除去、燻蒸など）","いいえ",0,3,0]
[null,null,"Epidemiological Concerns (vector borne disease)\nFood Safety and/or Clean Water Concerns","地域の水源の安全性を監視する能力がありますか？","いいえ",{"$f":"IF(E72=\"はい\",2,IF(E72=\"いいえ\",0,IF(E72=\"非該当\",2,IF(E72=\"情報不足\",1))))","v":0},3,0]
[null,null,"Food Safety and/or Clean Water Concerns","会場にトイレや手洗い場が用意されていますか？","非該当",2,2,4]
[null,null,null,"会場で食品を扱う責任者は、調理前および調理中に手を洗い、マスクを着用することが義務付けられていますか？","いいえ",0,2,0]
[null,null,null,"会場では、衛生管理、ゴミのチェックが行われていますか？","いいえ",0,2,0]
[null,null,"Epidemiological Concerns (vector borne disease)\nNon Infectious Disease Health Threats (injuries, stampedes, trampling)\nExtreme Weather Condition Concerns (frostbite, over heating)\nFood Safety and/or Clean Water Concerns","会場では、ゴミの撤去サービスが行われていますか？","いいえ",0,2,0]
[null,null,"Extreme Weather Condition Concerns (frostbite, over heating)","悪天候（暴風雨、洪水、山火事、極端な寒さや暑さなど）の際に、集会を屋内会場に移行するための計画や手順がありますか？","いいえ",0,2,{"$f":"F77*G77","v":0}]
[null,null,"Extreme Weather Condition Concerns (frostbite, over heating)","屋外での活動には、暖房または冷却装置が設置されていますか？","いいえ",0,2,0]
[]
[null,null,null," WHO/2023-Generic/Mass_gatherings_All_Hazards_RAtool/2023.1",null,null,null,{"$f":"SUM(H7:H78)","v":102}]
[null,null,"© WHO 2022. Some rights reserved. This work is available under the CC BY-NC-SA 3.0 IGO licence.","© WHO 2023. Some rights reserved. This work is available under the CC BY-NC-SA 3.0 IGO licence.",null,null,null,{"$f":"H80/282*100","v":36.170212765957451}]

{"sheet":"2C. リスクスコア","index":7,"n_rows":28,"n_cols":13,"rows_kept":28,"cut":false,"hidden":false,"merged":[[11,12,11,13],[12,12,12,13],[14,12,14,13],[9,2,13,2],[14,2,15,3],[10,12,10,13],[13,12,13,13],[20,2,20,4],[21,2,21,4],[23,2,23,4],[15,4,15,8],[20,5,20,8],[21,5,21,8],[23,5,23,8],[1,2,1,8],[2,2,3,13],[4,2,6,13],[8,2,8,8],[9,12,9,13]]}
[]
[null,null,"Step 2C: リスクスコア"]
[null,null,"ステップ1、2A、2Bで評価された質問と答えは、特定されたハザード、その発生の可能性、発生した場合の影響によって、大規模集会のリスクスコアを決定するために組み合わせられます。\nリスクスコアは、事前に特定されたハザードの発生可能性と影響度を組み合わせたリスクマトリックスによって決定されます。"]
[]
[]
[]
[]
[]
[null,null,"リスクマトリックス"]
["238.5-294.5",null,"ハザードスコア","命にかかわる","低い","中程度","高い","非常に高い","非常に高い",null,null,null,"全体のリスク"]
["175.5-238",null,null,"高い","低い","中程度","高い","高い","非常に高い",null,null,null,"非常に高い"]
["102.5-175",null,null,"中程度","とても低い","低い","中程度","高い","高い",null,null,null,"高い"]
["40-102",null,null,"低い","とても低い","とても低い","低い","中程度","中程度",null,null,null,"中程度"]
["0-39.5",null,null,"無視できる","とても低い","とても低い","とても低い","低い","低い",null,null,null,"低い"]
[null,null,null,null,"可能性とても低い","可能性は低い","可能性がある","可能性が高い","可能性とても高い",null,null,null,"非常に低い"]
[null,null,null,null,"可能性スコア"]
[]
[null,null,null,null,"86-100","66-85","36-65","16-35","0-15"]
[]
[]
[null,null,"ハザードスコア",null,null,{"$f":"IF(K21>238, \"命にかかわる\",IF(AND(K21>175,K21<=238),\"高い\",IF(AND(K21>102,K21<=175),\"中程度\",IF(AND(K21>40,K21<=102),\"低い\",IF(K21<40,\"無視できる\")))))","v":"中程度"},null,null,null,null,{"$f":"'2A. ハザードの特定'!G50","v":118},{"$f":"IF(K21>238, \"命に関わる\",IF(AND(K21>175,K21<=238),\"高い\",IF(AND(K21>102,K21<=175),\"中程度\",IF(AND(K21>40,K21<=102),\"低い\",IF(K21<40,\"無視できる\")))))","v":"中程度"}]
[null,null,"可能性スコア",null,null,{"$f":"IF(K22<=15, \"可能性とても高い\",IF(AND(K22>15,K22<=35),\"可能性が高い\",IF(AND(K22>35,K22<=65),\"可能性がある\",IF(AND(K22>65,K22<=85),\"可能性は低い\",IF(K22>85,\"可能性とても低い\")))))","v":"可能性がある"},null,null,null,null,{"$f":"'2B. 可能性の評価'!H81","v":36.170212765957451},{"$f":"IF(K22<=15, \"可能性とても高い\",IF(AND(K22>15,K22<=35),\"可能性が高い\",IF(AND(K22>35,K22<=65),\"可能性がある\",IF(AND(K22>65,K22<=85),\"可能性は低い\",IF(K22>85,\"可能性とても低い\")))))","v":"可能性がある"}]
[]
[null,null,"全体のリスク評価スコア",null,null,{"$f":"INDEX(E10:I14,MATCH(L21,D10:D14,0),MATCH(L22,E15:I15,0))","v":"中程度"}]
[]
[]
[null,null,"WHO/2023-Generic/Mass_gatherings_All_Hazards_RAtool/2023.1 "]
[null,null,"© WHO 2023. Some rights reserved. This work is available under the CC BY-NC-SA 3.0 IGO licence."]

{"sheet":"2D. 影響の判断","index":8,"n_rows":54,"n_cols":10,"rows_kept":54,"cut":false,"hidden":false,"merged":[[53,1,53,3],[51,1,51,3],[1,1,1,3],[2,1,2,3],[3,1,6,3],[10,1,33,1],[35,2,35,3],[35,1,45,1]]}
[]
[null,"Step 2D: ハザードが発生した場合の医療システムへの影響の判断"]
[null,"大規模な集会中にハザードが発生した場合、どのような影響があるのか、また、開催国がそのようなハザードに対応し、さらなる健康上の悪影響を軽減する能力はあるのか？\n発生するハザードの重大性、住民の脆弱性、現地の対処能力などが考慮されます。"]
[null,"説明：大規模な集会が行われる国を選択してください。複数の国がある場合は、国ごとにリスクアセスメントを実施する必要があります。以下のリンクから開催国のSPARスコアにアクセスし、各指標の報告スコアを記入してください。SPARスコアが2年以上前のものである場合、またはSPARスコアがない場合は、以下の追加記述（「能力の見積もり」）に回答する必要があります。\n　※あらかじめ日本のスコアが挿入されていますので、上半分は変更する必要はありません。"]
[]
[]
[]
[null,"イベント開催地\n（国名を選んでください）","Japan",null,null,"Scoring System"]
[null,null,null,null,null,"Indicator Level","Score","Score Range","Color"]
[null,"カテゴリー","インパクトや国のキャパシティに関する質問","スコア及び答え",null,1,20,"0-20",null,"Low "]
[null,"States Parties Self-Assessment Annual Reporting (SPAR)\n2022/8/25更新分日本版スコアを予め記入済み","Has the country completed a self-assessment annual report using the States Parties Self-Assessment Annual Reporting (SPAR) tool? If YES, please enter the most recent available country scores for the following SPAR indicators (available to download here).",null,null,2,40,"21-40",null,"Medium "]
[null,null,"C4.1 Specimen referral and transport system",100,null,3,60,"41-60",null,"Medium "]
[null,null,"C4.2. Implementation of a laboratory biosafety and biosecurity regime",40,null,4,80,"61-80",null,"High "]
[null,null,"C4.3. Laboratory quality system",70,null,5,100,"81-100",null,"High "]
[null,null,"C4.4. Laboratory testing capacity modalities",100]
[null,null,"C4.5. Effective national diagnostic network",100]
[null,null,"C5.1. Early warning surveillance function",100]
[null,null,"C5.2. Event management",100]
[null,null,"C7.1. Planning for health emergencies",100]
[null,null,"C7.2. Management of health emergency response",100]
[null,null,"C7.3. Emergency logistic and supply chain management",100]
[null,null,"C8.1. Case management",100]
[null,null,"C8.2. Utilization of health services",100]
[null,null,"C8.3. Continuity of essential health services (EHS)",100]
[null,null,"C10.1. RCCE system for emergencies",100]
[null,null,"C10.2. Risk communication",100]
[null,null,"C10.3. Community engagement",100]
[null,null,"C11.1. Core capacity requirements at all times for PoEs",100]
[null,null,"C11.2. Public health response at PoEs",100]
[null,null,"C11.3. Risk-based approach to international travel-related measures",100]
[null,null,"C13.1 Multisectoral collaboration mechanism for food safety events",100]
[null,null,"C14.1. Resources for detection and alert (chemical events)",100]
[null,null,"C15.1. Capacity and resources (radiation emergencies)",100]
[null,null,"SPAR スコア",{"$f":"SUM(D12:D33)/2200*100","v":95.909090909090907}]
[null,null,"SPAR 国の能力 スコア　判定",{"$f":"IF(D34>60, \"高い\",IF(AND(D34>20,D34<=60),\"中程度\",IF(AND(D34>0,D34<=20),\"低い\",\"\")))","v":"高い"}]
[null,"機能の推定","以下の質問にお答えいただくことで、地域の医療機能の各項目について、「高」「中」「低」の選択肢で答えてください。もし、その機能がわからない、あるいは推定できない場合は、「わからない」と答えてください。各項目について、「高」「中」「低」の選択肢で答えてください。あなたの判断で、以下の能力を「高」（その集会でしっかりした機能が発揮される）、「中」（その集会で中程度の機能が発揮される）、「低」（その集会で機能が弱いか発揮されない）のいずれかで評価してください。\t"]
[null,null,"検査機関の能力：検体の輸送システム、研究所のバイオセーフティとバイオセキュリティ体制、品質システム、検査方法、および全国での診断ネットワークを含む。","中程度",{"$f":"IF(D37=\"高い\",80,IF(D37=\"中程度\",50,IF(D37=\"低い\",10,IF(D37=\"わからない\",0,))))","v":50}]
[null,null,"早期警戒システム、情報の検証、調査、分析、伝達を含むサーベイランス能力。","中程度",{"$f":"IF(D38=\"高い\",80,IF(D38=\"中程度\",50,IF(D38=\"低い\",10,IF(D38=\"わからない\",0,))))","v":50}]
[null,null,"健康緊急事態の計画、健康緊急事態への対応の管理、緊急時の物流とサプライチェーンの管理などの健康緊急事態管理能力。","中程度",50]
[null,null,"症例管理、医療サービスの利用、必要な医療サービスの継続性など、医療サービス提供能力","高い",80]
[null,null,"リスクコミュニケーションとコミュニティ参画（RCCE）能力：緊急時のRCCEシステム、パブリックコミュニケーションとメディア対応（インフォデミックを含む）のメカニズム、国レベルおよび地方レベルでのコミュニティ参画活動実施のためのガイドライン／標準仕様書など。","高い",80]
[null,null,"空港、港湾、陸路での入国地点（PoE）および国境保健能力、PoEのための公衆衛生緊急事態計画、およびリスクに応じた方法で国際旅行関連措置の採用を決定するためのメカニズムを備えた国の多部門間プロセス。","中程度",50]
[null,null,"食品由来アウトブレイクに対処するための多部門連携メカニズムを含む食品安全能力。","中程度",50]
[null,null,"演習（訓練または実際のイベント）を行ったことのある集団死傷者管理能力。","低い",10]
[null,null,"国の能力 スコア",{"$f":"AVERAGE(E37:E44)","v":52.5}]
[null,null,"国の能力 スコア　判定",{"$f":"IF(D45>60, \"高い\",IF(AND(D45>20,D45<=60),\"中程度\",IF(AND(D45>0,D45<=20),\"低い\",\"\")))","v":"中程度"}]
[]
[null,"保健システム能力",{"$f":"IF(D34>0,D35,D46)","v":"高い"}]
[]
[]
[]
[]
[null,"WHO/2023-Generic/Mass_gatherings_All_Hazards_RAtool/2023.1 "]
[null,"© WHO 2023. Some rights reserved. This work is available under the CC BY-NC-SA 3.0 IGO licence."]

{"sheet":"3. 予防措置","index":9,"n_rows":54,"n_cols":7,"rows_kept":54,"cut":false,"hidden":false,"merged":[[47,3,47,4],[48,3,48,4],[49,3,49,4],[50,3,50,4],[1,1,1,6],[2,1,2,6],[3,1,3,6],[41,3,41,4],[42,3,42,4],[43,3,43,4],[44,3,44,4],[45,3,45,4],[46,3,46,4],[35,3,35,4],[36,3,36,4],[37,3,37,4],[38,3,38,4],[39,3,39,4],[40,3,40,4],[29,3,29,4],[30,3,30,4],[31,3,31,4],[32,3,32,4],[33,3,33,4],[34,3,34,4],[28,3,28,4],[17,3,17,4],[18,3,18,4],[19,3,19,4],[20,3,20,4],[21,3,21,4],[22,3,22,4],[23,3,23,4],[24,3,24,4],[25,3,25,4],[26,3,26,4],[27,3,27,4],[11,3,11,4],[12,3,12,4],[13,3,13,4],[14,3,14,4],[15,3,15,4],[16,3,16,4],[36,1,40,1],[41,1,45,1],[46,1,50,1],[5,2,5,4],[6,3,6,4],[7,3,7,4],[8,3,8,4],[9,3,9,4],[10,3,10,4],[6,1,10,1],[11,1,15,1],[16,1,20,1],[21,1,25,1],[26,1,30,1],[31,1,35,1]]}
[]
[null,"Step 3: 置くべき予防策を特定し、リスクを軽減する。"]
[null,"大規模な集会で優先的に実施すべき緩和策や予防策は？"]
[null,"指示 ステップ2Bで特定した緩和策から、大規模集会で実施される予防策と緩和策を挿入し、その実施状況を記入する。また、緩和措置の変更など、注意事項があれば記入してください。"]
[]
[null,"カテゴリー","予防策",null,null,"導入状態","メモ"]
[null,"一般的要因",1]
[null,null,2]
[null,null,3]
[null,null,4]
[null,null,5]
[null,"会場の要因",1]
[null,null,2]
[null,null,3]
[null,null,4]
[null,null,5]
[null,"行動要因",1]
[null,null,2]
[null,null,3]
[null,null,4]
[null,null,5]
[null,"疫学的要因",1]
[null,null,2]
[null,null,3]
[null,null,4]
[null,null,5]
[null,"CBRNの脅威",1]
[null,null,2]
[null,null,3]
[null,null,4]
[null,null,5]
[null,"保健システム要因",1]
[null,null,2]
[null,null,3]
[null,null,4]
[null,null,5]
[null,"環境要因",1]
[null,null,2]
[null,null,3]
[null,null,4]
[null,null,5]
[null,"法執行機関、公衆衛生、公安との連携",1]
[null,null,2]
[null,null,3]
[null,null,4]
[null,null,5]
[null,"その他",1]
[null,null,2]
[null,null,3]
[null,null,4]
[null,null,5]
[]
[null,"WHO/2023-Generic/Mass_gatherings_All_Hazards_RAtool/2023.1 "]
[null,"© WHO 2023. Some rights reserved. This work is available under the CC BY-NC-SA 3.0 IGO licence."]

{"sheet":"4. リスクコミュニケーション","index":10,"n_rows":24,"n_cols":3,"rows_kept":24,"cut":false,"hidden":false,"merged":[[6,1,6,3],[7,1,7,3],[1,1,1,3],[2,1,2,3],[3,1,3,3],[4,1,4,3],[5,1,5,3],[22,1,22,3],[23,1,23,3],[10,1,10,3],[9,1,9,3],[8,1,8,3],[20,1,20,3],[11,1,11,3],[12,1,12,3],[13,2,13,3],[14,2,14,3],[15,2,15,3],[16,2,16,3],[17,2,17,3],[18,2,18,3]]}
[]
[null,"Step 4: 大規模集会計画の実施と伝達\t\t"]
[null,"安全で成功した大規模集会を確保するための決定事項や方針の変更に関するメッセージの作成など、大規模集会計画を効果的に実施・伝達する方法。 "]
[null,"手順 リスクコミュニケーション、コミュニティ参加、インフォデミックマネジメントに関する考察を読み、大規模集会の前または開催中の様々な政策決定や変更のメッセージに関する考察を含む包括的な大規模集会コミュニケーション計画を構築します。 "]
[null,"“公衆衛生上の緊急事態における誤報”は、情報の急増を特徴としており、あるものは真実であるがあるものは偽りであり、コミュニケーションチャネルを越えて流通し、人々をメッセージであふれさせ、ヘルスコミュニケーション活動を複雑にします。\n\nグローバルなコミュニケーション環境におけるこのような課題を考えると、多くの人が集まる場では、自分たちが直面するかもしれない公衆衛生リスクについて、先入観を持っている人がほとんどでしょう。こうした認識は、個人の個人的な経験や、公衆衛生上の脅威に対する自国の管轄区域の対応の現状、その他多くの社会的・政治的視点によってもたらされる可能性があります。\n\n明確なリスクコミュニケーションは、人々が事象の実施方法の変更や修正を受け入れるのに不可欠です。これは、個人の行動変容が必要な変化や修正の一部である場合に特に重要です。"]
[null,"大規模な集会イベントに対する強固なリスクコミュニケーション戦略は、2つの基礎的な理解に基づいて構築されるべき。\n1. 大規模集会における修正・変更の合理性 \n2. 集会に参加する人々のコミュニケーション需要"]
[]
[null,"このオールハザード・大規模集会リスク評価ツールは、より安全な大規模集会の実践のための道筋を明らかにするのに役立つが、その道筋の根拠は、実施の成功をサポートするために効果的に伝えられなければなりません。またこの評価ツールは、意思決定のプロセスがより透明化され、大規模集会の参加者の賛同を得るのに役立つため、メッセージ構築のための貴重な資料となり得ます。"]
[null,"集会が行われる社会的、政治的、生態的環境は非常に動的であり、集会のリスクプロファイルはいつでも変化する可能性があります。したがって、イベントの主催者は、利害関係者とのコミュニケーションにおいて、この不確実性に前もって対処し、不測の事態が意思決定プロセスに与える影響について説明できるように準備し、イベントの進行に伴ってさらなる修正が必要になる可能性があることを認識しなければいけません。\t"]
[null,"柔軟なコミュニケーション戦略の構築、不確実性の認識、意思決定プロセスの透明性は、効果的なリスクコミュニケーションに不可欠な要素です。リスクコミュニケーション戦略は、ニーズ評価と適切なコミュニケーションチャネル（パートナーや地域社会との関わりを通じて）の特定から始めるべきです。このような戦略では、コミュニケーションの取り組みに信頼性を与え、情報を広めることができ、正しい情報が対象者に届くようにすることができる影響力のある人物を特定することも必要です。イベントプランナーは、風評や誤報を監視・管理し、リスクコミュニケーション活動の効果を評価して今後の活動に役立てるための準備も必要です。"]
[null,"大規模集会イベントのための一般的なオールハザード・リスク評価ツールの「ハザードが発生する可能性を評価する」セクション（ステップ2B）では、これらの戦略要素の多くを、修正作業の指針となるよう設計された実行可能なステップに変換しています。これらの質問とこのセクションで取り上げた他の質問を使用して、大規模集会イベントのためのリスクコミュニケーション戦略の開発を始めることができます。\t\t\n\t\t"]
[null,"もし、あなたの組織が支援を求めているのであれば、国の保健所がリスクコミュニケーション戦略に関する情報を提供するサービスを提供できるかもしれません。また、以下のWHOの出版物をはじめ、こうした取り組みに役立つ無料のリソースが数多くあります。\t\t"]
[null,"大規模集会計画の効果的な実施と伝達のためのチェックリスト\n大規模集会計画を普及させる際、以下のことを考慮しましたか？"]
[null,null,"大規模集会に関連するメッセージを共有するべき、さまざまな聞き手のグループを特定した。"]
[null,null,"大規模集会の計画に関して、適切な言葉と明確な情報を用いて、さまざまな聞き手のグループ向けに調整したメッセージを作成した。"]
[null,null,"大規模集会の計画において、使用される言葉や決定事項がすべての人を包含するものであることを確認するために、さまざまな関係者と討議した。"]
[null,null,"さまざまなプラットフォームやメッセージ サービスを通じて、マス ギャザリング計画やその他の関連情報を共有している。"]
[null,null,"さまざまなプラットフォームやメッセージングサービスを通じて、大規模集会の計画とその他の関連情報を共有した。"]
[null,null,"一般市民、スタッフ、大規模集会の参加者、その他の関係者が、イベント主催者や保健当局に質問・コメントするための方法を確保した。"]
[]
[null,"WHO Resource Links:\n- Risk Communication Essentials - Training (https://openwho.org/courses/risk-communication)\n- Communication Risk in Public Health Emergencies Guideline (https://www.who.int/publications/i/item/communicating-risk-in-public-health-emergencies) \n- Risk Communication: Frequently Asked Questions (https://www.who.int/news-room/q-a-detail/risk-communication-frequently-asked-questions)"]
[]
[null,"WHO/2023-Generic/Mass_gatherings_All_Hazards_RAtool/2023.1 "]
[null,"© WHO 2023. Some rights reserved. This work is available under the CC BY-NC-SA 3.0 IGO licence."]

{"sheet":"レビュアーの確認ページ","index":11,"n_rows":37,"n_cols":19,"rows_kept":37,"cut":false,"hidden":false,"merged":[[10,1,10,14],[32,2,32,3],[32,4,32,7],[32,8,32,11],[33,2,33,3],[33,4,33,7],[33,8,33,11],[30,2,30,3],[30,4,30,7],[30,8,30,11],[31,2,31,3],[31,4,31,7],[31,8,31,11],[28,2,28,3],[28,4,28,7],[28,8,28,11],[29,2,29,3],[29,4,29,7],[29,8,29,11],[26,2,26,3],[26,4,26,7],[26,8,26,11],[27,2,27,3],[27,4,27,7],[27,8,27,11],[24,2,24,3],[24,4,24,7],[24,8,24,11],[25,2,25,3],[25,4,25,7],[25,8,25,11],[23,2,23,5],[23,6,23,11],[13,1,13,4],[14,1,20,15],[23,12,23,15],[2,1,3,15],[8,1,8,14],[4,1,4,14],[5,3,5,14],[6,1,6,14],[7,3,7,14]]}
[]
[]
[null,"WHO 大規模集会 オールハザードリスク評価ツール - 確認ページ"]
[]
[null,"ハザードスコア",null,null,null,null,null,null,null,null,null,null,null,null,null,{"$f":"'2C. リスクスコア'!F21:I21","v":"中程度"},0,0,0]
[]
[null,"可能性スコア",null,null,null,null,null,null,null,null,null,null,null,null,null,{"$f":"'2C. リスクスコア'!F22:I22","v":"可能性がある"},0,0,0]
[]
[null,"全体のリスク評価スコア",null,null,null,null,null,null,null,null,null,null,null,null,null,{"$f":"'2C. リスクスコア'!F24:I24","v":"中程度"},0,0,0]
[]
[null,"国の能力スコア",null,null,null,null,null,null,null,null,null,null,null,null,null,{"$f":"'2D. 影響の判断'!C48","v":"高い"}]
[]
[]
[null,"レビュアーのコメント："]
[]
[]
[]
[]
[]
[]
[]
[]
[null,"レビュアーのサイン"]
[null,"番号","名前",null,null,null,"所属",null,null,null,null,null,"サイン"]
[null,1]
[null,2]
[null,3]
[null,4]
[null,5]
[null,6]
[null,7]
[null,8]
[null,9]
[null,10]
[]
[null,"WHO/2023-Generic/Mass_gatherings_All_Hazards_RAtool/2023.1 "]
[null,"© WHO 2023. Some rights reserved. This work is available under the CC BY-NC-SA 3.0 IGO licence."]

{"sheet":"Back end 2","index":12,"n_rows":320,"n_cols":15,"rows_kept":320,"cut":false,"hidden":false,"merged":[]}
["WHO 地域"]
["アフリカ"]
["アメリカ"]
["南・東アジア",null,null,null,null,null,null,null,null,null,null,null,null,"疫学的な懸念（人から人への感染拡大による感染症発生、性感染症は含まず）"]
["ヨーロッパ",null,null,null,null,null,null,null,null,null,null,null,null,"疫学的な懸念（性感染症）"]
["東地中海",null,null,null,null,null,null,null,null,null,null,null,null,"疫学的懸念（ベクターが媒介する病気）"]
["西太平洋",null,null,null,null,null,null,null,null,null,null,null,null,"非感染性疾患による健康への脅威（怪我、人の殺到、将棋倒しによる圧死）"]
[null,null,null,null,null,null,null,null,null,null,null,null,null,"極端な気象条件の懸念（凍傷、過熱）"]
[null,null,null,null,null,null,null,null,null,null,null,null,null,"CBRNの脅威"]
["はい",null,null,"弱い",null,null,null,null,null,null,null,null,null,"食品安全および・または水に関する懸念"]
["いいえ",null,null,"中程度",null,null,"1以下"]
["非該当",null,null,"強い",null,null,"1以上3以下"]
["情報不足",null,null,null,null,null,"3以上5以下"]
[null,null,null,"なし",null,null,"5以上7以下",null,null,null,"高リスク"]
["はい",null,null,"限定的な能力",null,null,"7以上",null,null,null,"中程度のリスク"]
["いいえ",null,null,"開発中だがまだテストされていない",null,null,null,null,null,null,"低リスク"]
["情報不足",null,null,"実証済みの能力",null,null,null,null,null,null,"重要でない"]
[null,null,null,null,null,null,null,null,null,null,"情報不足",null,null,null,"とても可能性が低い"]
["症例なし",null,null,null,null,null,null,null,null,null,"非該当",null,null,null,"可能性が低い"]
["散発的症例あり",null,null,null,null,null,null,null,null,null,null,null,null,null,"可能性がある"]
["症例クラスターあり",null,null,null,null,null,null,null,null,null,null,null,null,null,"可能性が高い"]
["市中感染状態",null,null,null,null,null,null,null,null,null,null,null,null,null,"ほぼ確実に起きる"]
[null,null,null,null,null,null,null,null,null,null,null,"公共交通機関：地下鉄、バス、鉄道など"]
[null,null,null,null,null,"はい、現地は換気状況が悪いです",null,null,null,null,null,"個別交通手段 ：自家用車、カーシェア、タクシー、飛行機など"]
["25％以下",null,null,null,null,"はい、現地は良い換気にしています。",null,null,null,null,null,"イベント主催者によって手配された交通（シャトルバスなど）"]
["25-50%",null,null,null,null,"いいえ",null,null,null,null,null,"その他"]
["51-75%",null,null,null,null,"情報不足",null,null,null,null,null,"これらの組み合わせ"]
["75%以上"]
["情報不足",null,null,"ワクチン接種率や血清抗体化の報告はない",null,null,null,null,null,"イベント主催者手配による交通"]
["非該当",null,null,"1%以下",null,null,null,null,null,"交通は手配されていない"]
[null,null,null,"1-10%",null,null,null,null,null,"非該当"]
[null,null,null,"10-20%以上",null,null,null,null,null,"情報不足"]
["弱い",null,null,"20-30%以上",null,null,null,null,"スポーツまたは運動競技のイベント（例：試合、トーナメント、展示会など）"]
["中程度",null,null,"30-40%以上",null,null,null,null,"舞台芸術イベント（例：ミュージカル、演劇、その他の舞台作品など）"]
["強い",null,null,"40-50%以上",null,null,null,null,"宗教的なイベント（例：礼拝、巡礼、祭典）"]
[null,null,null,"50-60%以上",null,null,null,null,"会議、博覧会、または見本市"]
[null,null,null,"60-70%以上",null,null,null,null,"非構造的な集まり（例：公園、ビーチ、バー/レストラン、その他の公共スペースでの非公式な集会）"]
["１より少ない",null,null,"70-80%以上",null,null,null,null,"その他"]
["1 から 2",null,null,"80-90%以上"]
["3 から 5",null,null,"90%以上"]
["6 から 10",null,null,"非該当"]
["11 から 15",null,null,null,null,null,null,null,"室内"]
["16 から 20",null,null,null,null,null,null,null,"屋外"]
["21以上",null,null,null,null,null,null,null,"バーチャル・オンライン"]
[null,null,null,null,null,null,null,null,"室内と屋外両方"]
[null,null,null,null,null,null,null,null,"ハイブリッド (つまり バーチャルと直接の両方)"]
["はい、25%以下",null,null,"25%以下",null,null,null,null,"わからない"]
["はい、25-50%の間",null,null,"25% - 50%の間"]
["はい、 51-75%の間",null,null,"51% - 75%の間"]
["はい、 75%以上",null,null,"75%以上"]
["はい、割合はわからない",null,null,"割合の情報なし",null,null,null,null,"地域の参加者"]
["いいえ",null,null,"非該当",null,null,null,null,"国内参加者"]
["情報不足",null,null,null,null,null,null,null,"海外の参加者"]
["非該当",null,null,null,null,null,null,null,"国内外全ての参加者"]
[null,null,null,null,null,null,null,null,"わからない"]
[null,null,null,null,null,"1時間以下"]
[null,null,null,null,null,"1-3時間",null,null,"娯楽的または違法薬物の使用（注射薬を含む）"]
[null,null,"100以下",null,null,"1日未満",null,null,"アルコール消費"]
[null,null,"100-1,000",null,null,"1週間未満",null,null,"無防備な性行為"]
[null,null,"1,000-10,000",null,null,"1ヶ月未満",null,null,"身体的暴力または自傷行為"]
[null,null,"10,000-100,000",null,null,"1ヶ月以上",null,null,"断食またはその他の食生活の改善"]
[null,null,"100,000以上",null,null,null,null,null,"上記の組み合わせ"]
[null,null,null,null,null,"長時間、互いに接近すること。"]
[null,null,null,null,null,"歌唱、応援、詠唱、その他の集団的な発声"]
[null,null,null,null,null,"上記の組み合わせ"]
[]
["ジフテリア"]
["破傷風"]
["A型肝炎",null,null,"ロタウイルス",null,"チクングニア",null,"HIV/エイズ",null,"COVID-19",null,"がん"]
["B型肝炎",null,null,"ノロウイスル",null,"デング熱",null,"梅毒",null,"季節性インフルエンザ",null,"心血管系疾患"]
["麻疹（はしか）",null,null,"コレラ",null,"リンパ系フィラリア症",null,"クラミジア",null,"結核",null,"糖尿病"]
["おたふくかぜ",null,null,"大腸菌",null,"リフトバレー熱",null,"淋病",null,"わからない",null,"慢性腎臓病"]
["風疹",null,null,"サルモネラ菌",null,"黄熱病",null,"わからない",null,null,null,"慢性呼吸器疾患（COPDなど）"]
["インフルエンザB型",null,null,"わからない",null,"ジカウイルス感染症",null,null,null,null,null,"肥満"]
["髄膜炎菌感染症",null,null,null,null,"リンパ系フィラリア症",null,null,null,null,null,"栄養失調"]
["ヒトパピローマウイスル",null,null,null,null,"マラリア",null,null,null,null,null,"わからない"]
["肺炎球菌感染症",null,null,null,null,"日本脳炎"]
["狂犬病",null,null,null,null,"西ナイル熱"]
["水痘（水疱瘡",null,null,null,null,"住血吸虫症"]
["百日咳",null,null,null,null,"オンコセルカ症（河川盲目症）"]
["RSウイルス",null,null,null,null,"ペスト"]
["わからない",null,null,null,null,"スナノミ症"]
[null,null,null,null,null,"チフス"]
[null,null,null,null,null,"シラミ媒介性回帰熱"]
[null,null,null,null,null,"リーシュマニア症"]
[null,null,null,null,null,"サシチョウバエ熱"]
[null,null,null,null,null,"クリミア・コンゴ出血熱"]
[null,null,null,null,null,"ライム病"]
[null,null,null,null,null,"回帰熱（ボレリア症）"]
[null,null,null,null,null,"リケッチア感染症（紅斑熱・Q熱など）"]
[null,null,null,null,null,"ダニ媒介性脳炎"]
[null,null,null,null,null,"ツラレミア（野兎病）"]
[null,null,null,null,null,"シャーガス病"]
[null,null,null,null,null,"眠り病"]
[null,null,null,null,null,"わからない"]
[]
[]
[]
[null,"Afghanistan"]
[null,"Albania"]
[null,"Algeria"]
[null,"Andorra"]
[null,"Angola"]
[null,"Antigua and Barbuda"]
[null,"Argentina"]
[null,"Armenia"]
[null,"Australia"]
[null,"Austria"]
[null,"Azerbaijan"]
[null,"Bahamas"]
[null,"Bahrain"]
[null,"Bangladesh"]
[null,"Barbados"]
[null,"Belarus"]
[null,"Belgium"]
[null,"Belize"]
[null,"Benin"]
[null,"Bhutan"]
[null,"Bolivia (Plurinational State of)"]
[null,"Bosnia and Herzegovina"]
[null,"Botswana"]
[null,"Brazil"]
[null,"Brunei Darussalam"]
[null,"Bulgaria"]
[null,"Burkina Faso"]
[null,"Burundi"]
[null,"Cabo Verde"]
[null,"Cambodia"]
[null,"Cameroon"]
[null,"Canada"]
[null,"Central African Republic"]
[null,"Chad"]
[null,"Chile"]
[null,"China"]
[null,"Colombia"]
[null,"Comoros"]
[null,"Congo"]
[null,"Cook Islands"]
[null,"Costa Rica"]
[null,"Cote d'Ivoire"]
[null,"Croatia"]
[null,"Cuba"]
[null,"Cyprus"]
[null,"Czech Republic"]
[null,"Czechoslovakia (former)"]
[null,"Democratic People's Republic of Korea"]
[null,"Democratic Republic of the Congo"]
[null,"Denmark"]
[null,"Djibouti"]
[null,"Dominica"]
[null,"Dominican Republic"]
[null,"Ecuador"]
[null,"Egypt"]
[null,"El Salvador"]
[null,"Equatorial Guinea"]
[null,"Eritrea"]
[null,"Estonia"]
[null,"Eswatini"]
[null,"Ethiopia"]
[null,"Fiji"]
[null,"Finland"]
[null,"France"]
[null,"Gabon"]
[null,"Gambia"]
[null,"Georgia"]
[null,"Germany"]
[null,"Germany, Democratic Republic (former)"]
[null,"Germany, Federal Republic (former)"]
[null,"Germany, West Berlin (former)"]
[null,"Ghana"]
[null,"Greece"]
[null,"Greenland"]
[null,"Grenada"]
[null,"Guadeloupe (until 2003)"]
[null,"Guatemala"]
[null,"Guinea"]
[null,"Guinea-Bissau"]
[null,"Guyana"]
[null,"Haiti"]
[null,"Honduras"]
[null,"Hungary"]
[null,"Iceland"]
[null,"India"]
[null,"India (until 1975)"]
[null,"Indonesia"]
[null,"Iran (Islamic Republic of)"]
[null,"Iraq"]
[null,"Ireland"]
[null,"Israel"]
[null,"Italy"]
[null,"Jamaica"]
[null,"Japan"]
[null,"Jordan"]
[null,"Kazakhstan"]
[null,"Kenya"]
[null,"Kiribati"]
[null,"Kiribati (until 1984)"]
[null,"Kuwait"]
[null,"Kyrgyzstan"]
[null,"Lao People's Democratic Republic"]
[null,"Latvia"]
[null,"Lebanon"]
[null,"Lesotho"]
[null,"Liberia"]
[null,"Libya"]
[null,"Lithuania"]
[null,"Luxembourg"]
[null,"Madagascar"]
[null,"Malawi"]
[null,"Malaysia"]
[null,"Maldives"]
[null,"Mali"]
[null,"Malta"]
[null,"Marshall Islands"]
[null,"Mauritania"]
[null,"Mauritius"]
[null,"Mexico"]
[null,"Micronesia (Federated States of)"]
[null,"Monaco"]
[null,"Mongolia"]
[null,"Montenegro"]
[null,"Morocco"]
[null,"Mozambique"]
[null,"Myanmar"]
[null,"Namibia"]
[null,"Nauru"]
[null,"Nepal"]
[null,"Netherlands"]
[null,"Netherlands Antilles (from 1986 until 2010)"]
[null,"Netherlands Antilles (until 1985)"]
[null,"New Zealand"]
[null,"Nicaragua"]
[null,"Niger"]
[null,"Nigeria"]
[null,"Niue"]
[null,"North Macedonia"]
[null,"Norway"]
[null,"Occupied Palestinian Territory"]
[null,"Oman"]
[null,"Pakistan"]
[null,"Palau"]
[null,"Panama"]
[null,"Papua New Guinea"]
[null,"Paraguay"]
[null,"Peru"]
[null,"Philippines"]
[null,"Poland"]
[null,"Portugal"]
[null,"Puerto Rico"]
[null,"Qatar"]
[null,"Republic of Korea"]
[null,"Republic of Moldova"]
[null,"Romania"]
[null,"Russian Federation"]
[null,"Rwanda"]
[null,"Saint Kitts and Nevis"]
[null,"Saint Lucia"]
[null,"Saint Vincent and the Grenadines"]
[null,"Samoa"]
[null,"San Marino"]
[null,"Sao Tome and Principe"]
[null,"Saudi Arabia"]
[null,"Senegal"]
[null,"Serbia"]
[null,"Serbia and Montenegro (2003-2006)"]
[null,"Seychelles"]
[null,"Sierra Leone"]
[null,"Singapore"]
[null,"Slovakia"]
[null,"Slovenia"]
[null,"Solomon Islands"]
[null,"Somalia"]
[null,"South Africa"]
[null,"South Sudan"]
[null,"South Viet Nam (former)"]
[null,"Spain"]
[null,"Sri Lanka"]
[null,"State Union of Serbia and Montenegro (1993-2002)"]
[null,"Sudan"]
[null,"Sudan (until 2011)"]
[null,"Suriname"]
[null,"Sweden"]
[null,"Switzerland"]
[null,"Syrian Arab Republic"]
[null,"Tajikistan"]
[null,"Thailand"]
[null,"Timor-Leste"]
[null,"Togo"]
[null,"Tokelau"]
[null,"Tonga"]
[null,"Trinidad and Tobago"]
[null,"Tunisia"]
[null,"Türkiye"]
[null,"Turkmenistan"]
[null,"Tuvalu"]
[null,"Uganda"]
[null,"Ukraine"]
[null,"Union of Soviet Socialist Republics (former)"]
[null,"United Arab Emirates"]
[null,"United Kingdom of Great Britain and Northern Ireland"]
[null,"United Republic of Tanzania"]
[null,"United States of America"]
[null,"Uruguay"]
[null,"Uzbekistan"]
[null,"Vanuatu"]
[null,"Venezuela (Bolivarian Republic of)"]
[null,"Viet Nam"]
[null,"Yemen"]
[null,"Yemen Arab Republic (until 1990)"]
[null,"Yugoslavia, Socialist Federal Republic (until 1992)"]
[null,"Zambia"]
[null,"Zimbabwe"]
[null,"Other/ Not a WHO Member State"]
[]
[]
[]
[]
[]
[]
[null,"Data protected by Password: backend"]